fUSD/lending_fUSD_20240119
["ID","MTS","AMOUNT","RATE_DAILY","PERIOD"]
[312185918,1705683049419,-500.0,0.00021917,2]
[312185919,1705683049428,-500.0,0.00021917,2]
[312185920,1705683049437,-500.0,0.00021917,2]
[312185921,1705683049447,-687.33,0.00021917,2]
[312185922,1705683049456,-500.0,0.00021917,2]
[312185923,1705683049465,-649.65,0.00021917,2]
[312185924,1705683049475,-500.0,0.00021917,2]
[312185925,1705683049484,-500.0,0.00021917,2]
[312185926,1705683049493,-500.0,0.00021917,2]
[312185927,1705683049502,-500.0,0.00021917,2]
[312185928,1705683049511,-500.0,0.00021917,2]
[312185929,1705683049522,-660.63,0.00021917,2]
[312185930,1705683049531,-500.0,0.00021917,2]
[312185931,1705683049540,-1226.99,0.00021917,2]
[312185932,1705683049549,-685.52,0.00021917,2]
[312185933,1705683049559,-1453.36,0.00021917,2]
[312185934,1705683049569,-574.9,0.00021917,2]
[312185935,1705683049578,-500.0,0.00021917,2]
[312185936,1705683049588,-500.0,0.00021917,2]
[312185937,1705683049597,-1528.63,0.00021917,2]
[312185938,1705683049607,-500.0,0.00021917,2]
[312185939,1705683049617,-500.0,0.00021917,2]
[312185940,1705683049626,-758.36,0.00021917,2]
[312185941,1705683049638,-500.0,0.00021917,2]
[312185942,1705683049648,-964.96,0.00021917,2]
[312185943,1705683049657,-500.0,0.00021917,2]
[312185944,1705683049667,-584.77,0.00021917,2]
[312185945,1705683049676,-500.0,0.00021917,2]
[312185946,1705683049686,-500.0,0.00021917,2]
[312185947,1705683049695,-500.0,0.00021917,2]
[312185948,1705683049705,-500.0,0.00021917,2]
[312185949,1705683049715,-500.0,0.00021917,2]
[312185950,1705683049725,-500.0,0.00021917,2]
[312185951,1705683049733,-500.0,0.00021917,2]
[312185952,1705683049743,-500.0,0.00021917,2]
[312185953,1705683049752,-500.0,0.00021917,2]
[312185954,1705683049761,-500.0,0.00021917,2]
[312185955,1705683049771,-534.84107779,0.00021917,2]
[312185956,1705683049780,-500.0,0.00021917,2]
[312185957,1705683049789,-500.0,0.00021917,2]
[312185958,1705683049799,-372.47632689,0.00021917,2]
[312185959,1705683049808,-500.0,0.00021917,2]
[312185960,1705683049817,-1985.31,0.00021917,2]
[312185961,1705683049826,-2102.59,0.00021917,2]
[312185962,1705683049835,-500.0,0.00021917,2]
[312185963,1705683049845,-500.0,0.00021917,5]
[312185964,1705683049854,-500.0,0.00021917,2]
[312185965,1705683049863,-500.0,0.00021917,2]
[312185966,1705683049873,-865.61,0.00021917,2]
[312185967,1705683049882,-500.0,0.00021917,2]
[312185968,1705683049891,-500.0,0.00021917,2]
[312185969,1705683049901,-705.47,0.00021917,2]
[312185970,1705683049910,-667.44,0.00021917,2]
[312185971,1705683049919,-500.0,0.00021917,2]
[312185972,1705683049929,-500.0,0.00021917,2]
[312185973,1705683049938,-500.0,0.00021917,2]
[312185974,1705683049947,-500.0,0.00021917,2]
[312185975,1705683049956,-500.0,0.00021917,2]
[312185976,1705683049965,-500.0,0.00021917,2]
[312185977,1705683049975,-500.0,0.00021917,2]
[312185978,1705683049984,-500.0,0.00021917,2]
[312185979,1705683049993,-500.0,0.00021917,2]
[312185980,1705683050003,-500.0,0.00021917,2]
[312185981,1705683050015,-640.9580008,0.00021917,2]
[312185982,1705683050025,-500.0,0.00021917,2]
[312185983,1705683050034,-2500.0,0.00021918,3]
[312185984,1705683050043,-250.0,0.00021918,2]
[312185985,1705683050053,-150.0,0.00021937,2]
[312185986,1705683050062,-226.25,0.0002196,2]
[312185987,1705683050072,-150.0,0.0002197,2]
[312185988,1705683050081,-500.0,0.00021999,2]
[312185989,1705683050091,-207.78272895,0.00022,2]
[312185990,1705683050100,-2780.01755274,0.00022,2]
[312185991,1705683050110,-550.0,0.00022,3]
[312185992,1705683050119,-10047.17829249,0.00022,2]
[312185993,1705683050129,-150.0,0.00022033,2]
[312185994,1705683050139,-258.17779624,0.00022047,2]
[312185995,1705683050150,-1229.52976238,0.00022082,2]
[312185996,1705683050159,-226.25,0.00022087,2]
[312185997,1705683050168,-3652.8371,0.0002209,2]
[312185998,1705683050178,-1000.0,0.00022091,2]
[312185999,1705683050189,-1000.0,0.00022091,2]
[312186000,1705683050199,-500.0,0.00022091,2]
[312186001,1705683050209,-355.70015448,0.00022091,2]
[312186002,1705683050219,-204.19173295,0.00022091,4]
[312186003,1705683050229,-971.12568826,0.00022091,2]
[312186004,1705683050238,-500.0,0.00022135,2]
[312186005,1705683050250,-1388.89,0.0002219,2]
[312186006,1705683050260,-1388.89,0.0002219,2]
[312186007,1705683050274,-1388.89,0.0002219,2]
[312186008,1705683050284,-1388.89,0.0002219,2]
[312186009,1705683050294,-1388.89,0.0002219,2]
[312186010,1705683050304,-500.0,0.0002219,2]
[312186011,1705683050314,-500.0,0.0002219,2]
[312186012,1705683050323,-500.0,0.0002219,2]
[312186013,1705683050332,-500.0,0.0002219,2]
[312186014,1705683050342,-500.0,0.0002219,2]
[312186015,1705683050351,-263.7417123,0.0002219,2]
[312186016,1705683050360,-500.0,0.0002219,2]
[312186017,1705683050370,-399.63,0.0002219,2]
[312186018,1705683050379,-500.0,0.0002219,2]
[312186019,1705683050388,-500.0,0.0002219,2]
[312186020,1705683050397,-500.0,0.0002219,2]
[312186021,1705683050407,-500.0,0.0002219,2]
[312186022,1705683050417,-500.0,0.0002219,2]
[312186023,1705683050426,-558.61,0.0002219,2]
[312186024,1705683050436,-558.61,0.0002219,2]
[312186025,1705683050445,-558.61,0.0002219,2]
[312186026,1705683050455,-558.61,0.0002219,2]
[312186027,1705683050465,-558.61,0.0002219,2]
[312186028,1705683050474,-2824.49,0.0002219,2]
[312186029,1705683050484,-2439.07,0.0002219,2]
[312186030,1705683050493,-4843.52,0.0002219,2]
[312186031,1705683050503,-500.0,0.0002219,2]
[312186032,1705683050513,-1433.16,0.0002219,2]
[312186033,1705683050524,-1681.58,0.0002219,2]
[312186034,1705683050533,-2258.27,0.0002219,2]
[312186035,1705683050543,-854.1,0.0002219,2]
[312186036,1705683050552,-1945.08,0.0002219,2]
[312186037,1705683050562,-898.06,0.0002219,2]
[312186038,1705683050571,-500.0,0.0002219,2]
[312186039,1705683050581,-1120.44,0.0002219,2]
[312186040,1705683050591,-698.76,0.0002219,2]
[312186041,1705683050601,-623.01,0.0002219,2]
[312186042,1705683050611,-1701.36,0.0002219,2]
[312186043,1705683050620,-915.97,0.0002219,2]
[312186044,1705683050632,-773722.66989616,0.00022191,3]
[312186045,1705683050642,-153.189807,0.00022191,7]
[312186046,1705683050652,-153.189807,0.00022191,7]
[312186047,1705683050662,-151.0,0.00022191,7]
[312186048,1705683050672,-151.0,0.00022191,7]
[312186049,1705683050682,-151.0,0.00022191,7]
[312186050,1705683050692,-222.129827,0.00022191,7]
[312186051,1705683050702,-222.129827,0.00022191,7]
[312186052,1705683050712,-151.0,0.00022191,7]
[312186053,1705683050723,-151.0,0.00022191,7]
[312186054,1705683050732,-151.0,0.00022191,7]
[312186055,1705683050742,-5165.831101,0.00022191,7]
[312186056,1705683050751,-5165.831101,0.00022191,7]
[312186057,1705683051047,-323.177933,0.00022191,7]
[312186058,1705683051067,-323.177933,0.00022191,7]
[312186059,1705683051076,-151.0,0.00022191,7]
[312186060,1705683051086,-535.82169994,0.00022191,2]
[312186061,1705683051095,-500.0,0.00022191,2]
[312186062,1705683051105,-500.0,0.00022191,2]
[312186063,1705683051114,-500.0,0.00022191,2]
[312186064,1705683051123,-513.8,0.00022191,2]
[312186065,1705683051132,-500.0,0.00022191,2]
[312186066,1705683051141,-500.0,0.00022191,2]
[312186067,1705683051150,-500.0,0.00022191,2]
[312186068,1705683051160,-500.0,0.00022191,2]
[312186069,1705683051169,-500.0,0.00022191,2]
[312186070,1705683051178,-500.0,0.00022191,2]
[312186071,1705683051187,-500.0,0.00022191,2]
[312186072,1705683051196,-500.0,0.00022191,2]
[312186073,1705683051206,-500.0,0.00022191,2]
[312186074,1705683051215,-500.0,0.00022191,2]
[312186075,1705683051224,-500.0,0.00022191,2]
[312186076,1705683051234,-500.0,0.00022191,2]
[312186077,1705683051242,-500.0,0.00022191,2]
[312186078,1705683051252,-500.0,0.00022191,2]
[312186079,1705683051261,-500.0,0.00022191,2]
[312186080,1705683051273,-500.0,0.00022191,2]
[312186081,1705683051282,-500.0,0.00022191,2]
[312186082,1705683051292,-500.0,0.00022191,2]
[312186083,1705683051301,-500.0,0.00022191,2]
[312186084,1705683051311,-500.0,0.00022191,2]
[312186085,1705683051320,-500.0,0.00022191,2]
[312186086,1705683051329,-500.0,0.00022191,2]
[312186087,1705683051339,-500.0,0.00022191,2]
[312186088,1705683051348,-567.84,0.00022191,2]
[312186089,1705683051358,-639.55612187,0.00022191,2]
[312186090,1705683051368,-577.79,0.00022191,2]
[312186091,1705683051377,-531.87774537,0.00022191,2]
[312186092,1705683051387,-500.0,0.00022191,2]
[312186093,1705683051397,-500.0,0.00022191,2]
[312186094,1705683051407,-589.17634084,0.00022191,2]
[312186095,1705683051417,-500.0,0.00022191,2]
[312186096,1705683051427,-582.91437709,0.00022191,2]
[312186097,1705683051436,-500.0,0.00022191,2]
[312186098,1705683051446,-500.0,0.00022191,2]
[312186099,1705683051455,-500.0,0.00022191,2]
[312186100,1705683051465,-285.69792185,0.00022191,2]
[312186101,1705683051475,-452.14475273,0.00022191,2]
[312186102,1705683051485,-500.0,0.00022191,2]
[312186103,1705683051495,-500.0,0.00022191,2]
[312186104,1705683051505,-500.0,0.00022191,2]
[312186105,1705683051516,-500.0,0.00022191,2]
[312186106,1705683051526,-500.0,0.00022191,2]
[312186107,1705683051536,-500.0,0.00022191,2]
[312186108,1705683051546,-500.0,0.00022191,2]
[312186109,1705683051555,-500.0,0.00022191,2]
[312186110,1705683051565,-500.0,0.00022191,2]
[312186111,1705683051575,-507.16,0.00022191,2]
[312186112,1705683051585,-500.0,0.00022191,2]
[312186113,1705683051595,-500.0,0.00022191,2]
[312186114,1705683051604,-500.0,0.00022191,2]
[312186115,1705683051615,-500.0,0.00022191,2]
[312186116,1705683051625,-510.45674077,0.00022191,2]
[312186117,1705683051637,-500.0,0.00022191,2]
[312186118,1705683051647,-500.0,0.00022191,2]
[312186119,1705683051657,-156.82008762,0.00022191,2]
[312186120,1705683051666,-500.0,0.00022191,2]
[312186121,1705683051676,-500.0,0.00022191,2]
[312186122,1705683051685,-500.0,0.00022191,2]
[312186123,1705683051695,-500.0,0.00022191,2]
[312186124,1705683051705,-500.0,0.00022191,2]
[312186125,1705683051714,-500.0,0.00022191,2]
[312186126,1705683051723,-500.0,0.00022191,2]
[312186127,1705683051733,-500.0,0.00022191,2]
[312186128,1705683051742,-500.0,0.00022191,2]
[312186129,1705683051753,-500.0,0.00022191,2]
[312186130,1705683051763,-295.85,0.00022191,2]
[312186131,1705683051777,-500.0,0.00022191,2]
[312186132,1705683051787,-500.0,0.00022191,2]
[312186133,1705683051797,-500.0,0.00022191,2]
[312186134,1705683051807,-500.0,0.00022191,2]
[312186135,1705683051816,-500.0,0.00022191,2]
[312186136,1705683051826,-500.0,0.00022191,2]
[312186137,1705683051836,-500.0,0.00022191,2]
[312186138,1705683051846,-502.64614253,0.00022191,2]
[312186139,1705683051855,-500.0,0.00022191,2]
[312186140,1705683051865,-500.0,0.00022191,2]
[312186141,1705683051875,-208.49459365,0.00022191,2]
[312186142,1705683051884,-375.15036717,0.00022191,2]
[312186143,1705683051894,-500.0,0.00022191,2]
[312186144,1705683051904,-500.0,0.00022191,2]
[312186145,1705683051913,-500.0,0.00022191,2]
[312186146,1705683051923,-500.0,0.00022191,2]
[312186147,1705683051932,-500.0,0.00022191,2]
[312186148,1705683051942,-500.0,0.00022191,2]
[312186149,1705683051951,-500.0,0.00022191,2]
[312186150,1705683051960,-500.0,0.00022191,2]
[312186151,1705683051970,-500.0,0.00022191,2]
[312186152,1705683051980,-500.0,0.00022191,2]
[312186153,1705683051990,-500.0,0.00022191,2]
[312186154,1705683052000,-500.0,0.00022191,2]
[312186155,1705683052010,-629.5,0.00022191,2]
[312186156,1705683052024,-372.15544676,0.00022191,2]
[312186157,1705683052033,-500.0,0.00022191,2]
[312186158,1705683052043,-500.0,0.00022191,2]
[312186159,1705683052052,-556.75,0.00022191,2]
[312186160,1705683052061,-500.0,0.00022191,2]
[312186161,1705683052070,-500.0,0.00022191,2]
[312186162,1705683052079,-500.0,0.00022191,2]
[312186163,1705683052089,-500.0,0.00022191,2]
[312186164,1705683052098,-500.0,0.00022191,2]
[312186165,1705683052107,-500.0,0.00022191,2]
[312186166,1705683052116,-500.0,0.00022191,2]
[312186167,1705683052126,-500.0,0.00022191,2]
[312186168,1705683052135,-500.0,0.00022191,2]
[312186169,1705683052146,-500.0,0.00022191,2]
[312186170,1705683052155,-640.23,0.00022191,2]
[312186171,1705683052164,-500.0,0.00022191,2]
[312186172,1705683052173,-500.0,0.00022191,2]
[312186173,1705683052183,-500.0,0.00022191,2]
[312186174,1705683052192,-506.3038131,0.00022191,2]
[312186175,1705683052202,-500.0,0.00022191,2]
[312186176,1705683052212,-500.0,0.00022191,2]
[312186177,1705683052221,-500.0,0.00022191,2]
[312186178,1705683052232,-500.0,0.00022191,2]
[312186179,1705683052241,-500.0,0.00022191,2]
[312186180,1705683052251,-500.0,0.00022191,2]
[312186181,1705683052261,-622.95,0.00022191,2]
[312186182,1705683052274,-500.0,0.00022191,2]
[312186183,1705683052284,-590.57,0.00022191,2]
[312186184,1705683052293,-500.0,0.00022191,2]
[312186185,1705683052303,-500.0,0.00022191,2]
[312186186,1705683052312,-500.0,0.00022191,2]
[312186187,1705683052323,-500.0,0.00022191,2]
[312186188,1705683052332,-500.0,0.00022191,2]
[312186189,1705683052343,-671.3,0.00022191,2]
[312186190,1705683052353,-610.96,0.00022191,2]
[312186191,1705683052365,-372.29772323,0.00022191,2]
[312186192,1705683052375,-500.0,0.00022191,2]
[312186193,1705683052384,-500.0,0.00022191,2]
[312186194,1705683052394,-500.0,0.00022191,2]
[312186195,1705683052403,-500.0,0.00022191,2]
[312186196,1705683052412,-500.0,0.00022191,2]
[312186197,1705683052422,-500.0,0.00022191,2]
[312186198,1705683052432,-500.0,0.00022191,2]
[312186199,1705683052442,-500.0,0.00022191,2]
[312186200,1705683052451,-500.0,0.00022191,2]
[312186201,1705683052462,-548.49,0.00022191,2]
[312186202,1705683052470,-500.0,0.00022191,2]
[312186203,1705683052479,-500.0,0.00022191,2]
[312186204,1705683052492,-681.24,0.00022191,2]
[312186205,1705683052502,-500.0,0.00022191,2]
[312186206,1705683052512,-518.28,0.00022191,2]
[312186207,1705683052524,-500.0,0.00022191,2]
[312186208,1705683052533,-500.0,0.00022191,2]
[312186209,1705683052542,-500.0,0.00022191,2]
[312186210,1705683052552,-509.0771045,0.00022191,2]
[312186211,1705683052562,-500.0,0.00022191,2]
[312186212,1705683052572,-500.0,0.00022191,2]
[312186213,1705683052581,-500.0,0.00022191,2]
[312186214,1705683052591,-500.0,0.00022191,2]
[312186215,1705683052601,-500.0,0.00022191,2]
[312186216,1705683052613,-509.70472748,0.00022191,2]
[312186217,1705683052622,-501.91089486,0.00022191,2]
[312186218,1705683052633,-500.0,0.00022191,2]
[312186219,1705683052643,-587.01,0.00022191,2]
[312186220,1705683052652,-500.0,0.00022191,2]
[312186221,1705683052661,-500.0,0.00022191,2]
[312186222,1705683052672,-500.0,0.00022191,2]
[312186223,1705683052681,-500.0,0.00022191,2]
[312186224,1705683052690,-500.0,0.00022191,2]
[312186225,1705683052699,-500.0,0.00022191,2]
[312186226,1705683052711,-500.0,0.00022191,2]
[312186227,1705683052720,-506.94522702,0.00022191,2]
[312186228,1705683052729,-500.0,0.00022191,2]
[312186229,1705683052738,-776.62,0.00022191,2]
[312186230,1705683052747,-500.0,0.00022191,2]
[312186231,1705683052757,-500.0,0.00022191,2]
[312186232,1705683052767,-500.0,0.00022191,2]
[312186233,1705683052777,-500.0,0.00022191,2]
[312186234,1705683052787,-500.0,0.00022191,2]
[312186235,1705683052796,-500.0,0.00022191,2]
[312186236,1705683052805,-500.0,0.00022191,2]
[312186237,1705683052815,-500.0,0.00022191,2]
[312186238,1705683052823,-500.0,0.00022191,2]
[312186239,1705683052833,-500.0,0.00022191,2]
[312186240,1705683052842,-500.0,0.00022191,2]
[312186241,1705683052851,-500.0,0.00022191,2]
[312186242,1705683052860,-500.0,0.00022191,2]
[312186243,1705683052870,-500.0,0.00022191,2]
[312186244,1705683052879,-500.0,0.00022191,2]
[312186245,1705683052889,-500.0,0.00022191,2]
[312186246,1705683052898,-699.79,0.00022191,2]
[312186247,1705683052906,-500.0,0.00022191,2]
[312186248,1705683052915,-500.0,0.00022191,2]
[312186249,1705683052924,-500.0,0.00022191,2]
[312186250,1705683052933,-500.0,0.00022191,2]
[312186251,1705683052942,-500.0,0.00022191,2]
[312186252,1705683052951,-500.0,0.00022191,2]
[312186253,1705683052961,-500.0,0.00022191,2]
[312186254,1705683052970,-500.0,0.00022191,2]
[312186255,1705683052979,-1527.21,0.00022191,2]
[312186256,1705683052989,-500.0,0.00022191,2]
[312186257,1705683052998,-542.12,0.00022191,2]
[312186258,1705683053008,-500.0,0.00022191,2]
[312186259,1705683053017,-500.0,0.00022191,2]
[312186260,1705683053026,-647.65,0.00022191,2]
[312186261,1705683053036,-500.0,0.00022191,2]
[312186262,1705683053045,-525.24,0.00022191,2]
[312186263,1705683053055,-500.0,0.00022191,2]
[312186264,1705683053064,-511.70374353,0.00022191,2]
[312186265,1705683053074,-500.0,0.00022191,2]
[312186266,1705683053083,-500.0,0.00022191,2]
[312186267,1705683053093,-559.07,0.00022191,2]
[312186268,1705683053102,-500.0,0.00022191,2]
[312186269,1705683053112,-500.0,0.00022191,2]
[312186270,1705683053121,-500.0,0.00022191,2]
[312186271,1705683053131,-1618.58,0.00022191,2]
[312186272,1705683053140,-500.0,0.00022191,2]
[312186273,1705683053150,-500.0,0.00022191,2]
[312186274,1705683053159,-541.22,0.00022191,2]
[312186275,1705683053169,-500.0,0.00022191,2]
[312186276,1705683053179,-500.0,0.00022191,2]
[312186277,1705683053188,-500.0,0.00022191,2]
[312186278,1705683053198,-500.0,0.00022191,2]
[312186279,1705683053208,-500.0,0.00022191,2]
[312186280,1705683053217,-500.0,0.00022191,2]
[312186281,1705683053227,-809.64,0.00022191,2]
[312186282,1705683053236,-500.0,0.00022191,2]
[312186283,1705683053246,-500.0,0.00022191,2]
[312186284,1705683053255,-500.0,0.00022191,2]
[312186285,1705683053264,-500.0,0.00022191,2]
[312186286,1705683053275,-500.0,0.00022191,2]
[312186287,1705683053285,-512.68,0.00022191,2]
[312186288,1705683053295,-500.0,0.00022191,2]
[312186289,1705683053304,-500.0,0.00022191,2]
[312186290,1705683053315,-500.0,0.00022191,2]
[312186291,1705683053324,-500.0,0.00022191,2]
[312186292,1705683053333,-500.0,0.00022191,2]
[312186293,1705683053343,-582.84,0.00022191,2]
[312186294,1705683053352,-500.0,0.00022191,2]
[312186295,1705683053362,-500.0,0.00022191,2]
[312186296,1705683053371,-629.94,0.00022191,2]
[312186297,1705683053381,-500.0,0.00022191,2]
[312186298,1705683053390,-500.0,0.00022191,2]
[312186299,1705683053469,-500.0,0.00022191,2]
[312186300,1705683053480,-500.0,0.00022191,2]
[312186301,1705683053489,-500.0,0.00022191,2]
[312186302,1705683053499,-500.0,0.00022191,2]
[312186303,1705683053508,-599.05,0.00022191,2]
[312186304,1705683053518,-500.0,0.00022191,2]
[312186305,1705683053530,-764.03,0.00022191,2]
[312186306,1705683053539,-500.0,0.00022191,2]
[312186307,1705683053548,-159.62396927,0.00022191,2]
[312186308,1705683053557,-500.0,0.00022191,2]
[312186309,1705683053567,-546.89,0.00022191,2]
[312186310,1705683053576,-500.0,0.00022191,2]
[312186311,1705683053586,-500.0,0.00022191,2]
[312186312,1705683053595,-500.0,0.00022191,2]
[312186313,1705683053604,-500.0,0.00022191,2]
[312186314,1705683053614,-500.0,0.00022191,2]
[312186315,1705683053624,-2196.87,0.00022191,2]
[312186316,1705683053635,-500.0,0.00022191,2]
[312186317,1705683053645,-500.0,0.00022191,2]
[312186318,1705683053654,-553.1,0.00022191,2]
[312186319,1705683053663,-329.66532445,0.00022191,2]
[312186320,1705683053672,-500.0,0.00022191,2]
[312186321,1705683053681,-500.0,0.00022191,2]
[312186322,1705683053691,-500.0,0.00022191,2]
[312186323,1705683053700,-515.48353916,0.00022191,2]
[312186324,1705683053711,-500.0,0.00022191,2]
[312186325,1705683053720,-500.0,0.00022191,2]
[312186326,1705683053729,-500.0,0.00022191,2]
[312186327,1705683053738,-500.0,0.00022191,2]
[312186328,1705683053747,-500.0,0.00022191,2]
[312186329,1705683053757,-800.12,0.00022191,2]
[312186330,1705683053768,-500.0,0.00022191,2]
[312186331,1705683053778,-500.0,0.00022191,2]
[312186332,1705683053788,-500.0,0.00022191,2]
[312186333,1705683053797,-696.84,0.00022191,2]
[312186334,1705683053808,-500.0,0.00022191,2]
[312186335,1705683053817,-500.0,0.00022191,2]
[312186336,1705683053826,-500.0,0.00022191,2]
[312186337,1705683053834,-500.0,0.00022191,2]
[312186338,1705683053843,-759.79,0.00022191,2]
[312186339,1705683053852,-500.0,0.00022191,2]
[312186340,1705683053861,-500.0,0.00022191,2]
[312186341,1705683053870,-500.0,0.00022191,2]
[312186342,1705683053879,-500.0,0.00022191,2]
[312186343,1705683053889,-642.64649444,0.00022191,2]
[312186344,1705683053898,-500.0,0.00022191,2]
[312186345,1705683053907,-525.68,0.00022191,2]
[312186346,1705683053915,-500.0,0.00022191,2]
[312186347,1705683053924,-500.0,0.00022191,2]
[312186348,1705683053934,-756.34,0.00022191,2]
[312186349,1705683053943,-232.92080625,0.00022191,2]
[312186350,1705683053952,-1301.48,0.00022191,2]
[312186351,1705683053961,-500.0,0.00022191,2]
[312186352,1705683053970,-500.0,0.00022191,2]
[312186353,1705683053979,-500.0,0.00022191,2]
[312186354,1705683053988,-500.0,0.00022191,2]
[312186355,1705683053997,-500.0,0.00022191,2]
[312186356,1705683054006,-423.87920111,0.00022191,2]
[312186357,1705683054016,-500.0,0.00022191,2]
[312186358,1705683054026,-500.0,0.00022191,2]
[312186359,1705683054035,-500.0,0.00022191,2]
[312186360,1705683054044,-500.0,0.00022191,2]
[312186361,1705683054053,-500.0,0.00022191,2]
[312186362,1705683054062,-500.0,0.00022191,2]
[312186363,1705683054071,-500.0,0.00022191,2]
[312186364,1705683054080,-500.0,0.00022191,2]
[312186365,1705683054089,-500.0,0.00022191,2]
[312186366,1705683054098,-504.44,0.00022191,2]
[312186367,1705683054106,-500.0,0.00022191,2]
[312186368,1705683054115,-500.0,0.00022191,2]
[312186369,1705683054124,-500.0,0.00022191,2]
[312186370,1705683054133,-500.0,0.00022191,2]
[312186371,1705683054142,-500.0,0.00022191,2]
[312186372,1705683054152,-500.0,0.00022191,2]
[312186373,1705683054161,-500.0,0.00022191,2]
[312186374,1705683054171,-330.63,0.00022191,2]
[312186375,1705683054180,-503.35833775,0.00022191,2]
[312186376,1705683054189,-500.0,0.00022191,7]
[312186377,1705683054208,-500.0,0.00022191,2]
[312186378,1705683054220,-500.0,0.00022191,2]
[312186379,1705683054230,-522.23,0.00022191,2]
[312186380,1705683054240,-500.0,0.00022191,2]
[312186381,1705683054249,-500.0,0.00022191,2]
[312186382,1705683054259,-500.0,0.00022191,2]
[312186383,1705683054271,-500.0,0.00022191,2]
[312186384,1705683054280,-163.77954893,0.00022191,2]
[312186385,1705683054290,-500.0,0.00022191,2]
[312186386,1705683054299,-500.0,0.00022191,2]
[312186387,1705683054309,-500.0,0.00022191,2]
[312186388,1705683054319,-652.64,0.00022191,2]
[312186389,1705683054329,-500.0,0.00022191,2]
[312186390,1705683054339,-878.19,0.00022191,2]
[312186391,1705683054348,-863.27,0.00022191,2]
[312186392,1705683054358,-500.0,0.00022191,2]
[312186393,1705683054367,-500.0,0.00022191,2]
[312186394,1705683054377,-995.21,0.00022191,2]
[312186395,1705683054387,-501.61,0.00022191,2]
[312186396,1705683054397,-500.0,0.00022191,2]
[312186397,1705683054407,-747.28,0.00022191,2]
[312186398,1705683054417,-500.0,0.00022191,2]
[312186399,1705683054427,-506.37178583,0.00022191,2]
[312186400,1705683054437,-500.0,0.00022191,2]
[312186401,1705683054447,-500.0,0.00022191,2]
[312186402,1705683054457,-500.0,0.00022191,2]
[312186403,1705683054467,-500.0,0.00022191,2]
[312186404,1705683054477,-545.79,0.00022191,2]
[312186405,1705683054487,-500.0,0.00022191,2]
[312186406,1705683054497,-500.0,0.00022191,2]
[312186407,1705683054507,-500.0,0.00022191,2]
[312186408,1705683054518,-504.98485972,0.00022191,2]
[312186409,1705683054528,-565.84,0.00022191,2]
[312186410,1705683054539,-500.0,0.00022191,2]
[312186411,1705683054548,-500.0,0.00022191,2]
[312186412,1705683054558,-500.0,0.00022191,2]
[312186413,1705683054568,-500.0,0.00022191,2]
[312186414,1705683054577,-821.94,0.00022191,2]
[312186415,1705683054587,-500.0,0.00022191,2]
[312186416,1705683054597,-546.42,0.00022191,2]
[312186417,1705683054607,-500.0,0.00022191,2]